bitfinex/quotes_SOLUSD_20220208
["timestamp","ask_amount","ask_price","bid_price","bid_amount"]
[1644305513772,52.6286,117.35,117.26,23.2911]
[1644305513973,52.6286,117.35,117.26,23.3151]
[1644305514172,52.6286,117.35,117.26,29.3151]
[1644305514474,52.6286,117.35,117.26,29.5651]
[1644305522982,46.6286,117.35,117.26,29.5651]
[1644305529288,44.1884,117.35,117.26,29.5651]
[1644305531492,44.1884,117.35,117.26,29.3151]
[1644305532814,44.1884,117.35,117.26,29.5651]
[1644305533015,34.8064,117.35,117.26,29.5651]
[1644305533816,34.5564,117.35,117.26,30.76177727]
[1644305534218,34.5564,117.35,117.27,1.19667727]
[1644305534417,34.5564,117.35,117.28,1.19667727]
[1644305534617,10.3473,117.35,117.28,1.19667727]
[1644305534818,12.7845,117.36,117.28,14.23117727]
[1644305535018,12.7845,117.36,117.28,20.25517727]
[1644305535318,43.80289075,117.4,117.28,20.23117727]
[1644305535519,1.19089075,117.4,117.29,25.65707727]
[1644305535719,24.4657,117.41,117.3,1.19667727]
[1644305536120,24.4657,117.41,117.31,1.19667727]
[1644305536320,24.4657,117.41,117.31,25.90707727]
[1644305536521,24.4657,117.41,117.31,30.7104]
[1644305536721,12.7813,117.39,117.31,43.4915]
[1644305537525,24.4657,117.41,117.31,43.4915]
[1644305537722,24.4657,117.41,117.31,44.68817727]
[1644305538527,24.4657,117.41,117.31,43.4915]
[1644305538727,12.7802,117.4,117.31,43.4915]
[1644305539124,1.19089075,117.42,117.31,44.68817727]
[1644305539325,0.25,117.42,117.31,44.68817727]
[1644305539725,0.25,117.42,117.31,43.4915]
[1644305540226,0.25,117.42,117.31,44.68817727]
[1644305540427,1.44089075,117.43,117.31,44.68817727]
[1644305540628,24.22349075,117.44,117.31,44.68817727]
[1644305540829,12.78,117.4,117.31,56.94817727]
[1644305541628,12.78,117.4,117.31,55.7515]
[1644305542828,12.78,117.4,117.31,68.4053]
[1644305546731,1.19089075,117.44,117.32,98.0]
[1644305546932,1.19089075,117.46,117.36,12.7725]
[1644305547132,22.5499,117.5,117.36,12.7725]
[1644305547133,1.19089075,117.47,117.37,36.1734]
[1644305547332,22.5499,117.5,117.37,36.1734]
[1644305547333,1.19089075,117.49,117.37,38.09087792]
[1644305547532,12.7715,117.49,117.38,1.66747792]
[1644305547731,12.7715,117.49,117.39,12.26]
[1644305548132,18.7715,117.49,117.4,12.7709]
[1644305548332,12.7715,117.49,117.4,13.0209]
[1644305548532,12.7715,117.49,117.4,41.8928]
[1644305548735,13.0215,117.49,117.4,41.8928]
[1644305548933,1.19089075,117.5,117.4,41.8928]
[1644305549133,69.39826892,117.57,117.4,41.8928]
[1644305549134,1.19089075,117.51,117.4,43.56027792]
[1644305549333,1.19089075,117.53,117.4,55.82027792]
[1644305550132,24.67589075,117.53,117.4,55.82027792]
[1644305550332,23.735,117.53,117.4,55.82027792]
[1644305550734,12.7683,117.52,117.4,55.82027792]
[1644305551135,13.0183,117.52,117.4,55.82027792]
[1644305551338,12.7683,117.52,117.4,55.82027792]
[1644305552736,13.0183,117.52,117.4,55.82027792]
[1644305553035,0.25,117.52,117.4,55.82027792]
[1644305553235,12.7665,117.54,117.4,55.82027792]
[1644305553439,0.02939538,117.55,117.4,85.3551573]
[1644305554236,0.02939538,117.55,117.41,153.29]
[1644305554437,0.02939538,117.56,117.42,47.1935]
[1644305554738,0.02939538,117.54,117.46,12.761]
[1644305554936,1.19089075,117.59,117.46,12.761]
[1644305554937,0.02939538,117.57,117.47,60.00939826]
[1644305555136,0.02939538,117.58,117.48,0.66259826]
[1644305555336,0.27939538,117.59,117.48,13.92759013]
[1644305555537,0.02939538,117.58,117.49,23.2236]
[1644305555741,0.02939538,117.59,117.5,12.7609]
[1644305555938,0.02939538,117.59,117.5,26.68849013]
[1644305556138,0.02939538,117.61,117.51,1.66759013]
[1644305556439,0.02939538,117.62,117.52,12.26]
[1644305556637,137.42559075,117.64,117.52,12.26]
[1644305556638,0.02939538,117.61,117.52,18.26]
[1644305556839,0.02939538,117.62,117.52,20.17759013]
[1644305557743,0.02939538,117.62,117.53,12.7562]
[1644305557944,12.7576,117.63,117.53,12.7562]
[1644305558144,12.78699538,117.63,117.53,18.7562]
[1644305558343,13.03699538,117.63,117.53,19.0062]
[1644305560144,0.27939538,117.63,117.53,19.0062]
[1644305560345,0.02939538,117.63,117.53,19.0062]
[1644305560542,136.51409538,117.64,117.53,19.0062]
[1644305560744,0.02939538,117.63,117.53,19.0062]
[1644305561043,113.37939538,117.64,117.54,1.66759013]
[1644305561243,0.02939538,117.63,117.54,0.25]
[1644305561553,113.37939538,117.64,117.54,6.25]
[1644305562147,113.37939538,117.64,117.54,0.25]
[1644305562548,113.37939538,117.64,117.53,19.0062]
[1644305562846,119.37939538,117.64,117.53,19.0062]
[1644305563247,113.37939538,117.64,117.53,19.0062]
[1644305563647,113.37939538,117.64,117.53,43.764]
[1644305564649,119.37939538,117.64,117.53,43.764]
[1644305565050,113.37939538,117.64,117.53,43.764]
[1644305565651,113.37939538,117.64,117.53,56.8077]
[1644305566251,0.02939538,117.64,117.54,1.66759013]
[1644305566468,0.02939538,117.66,117.54,13.92759013]
[1644305566771,0.02939538,117.64,117.56,12.7517]
[1644305566970,0.02939538,117.65,117.56,12.7517]
[1644305567172,0.02939538,117.67,117.57,38.35089013]
[1644305567570,0.02939538,117.68,117.58,12.7501]
[1644305567769,0.02939538,117.67,117.58,0.25]
[1644305567968,0.02939538,117.68,117.58,6.25]
[1644305568170,0.02939538,117.7,117.58,7.91759013]
[1644305568569,0.02939538,117.7,117.58,6.25]
[1644305568869,14.88765087,117.7,117.58,0.25]
[1644305569068,0.02939538,117.69,117.58,0.25]
[1644305569272,0.02939538,117.69,117.57,30.6733]
[1644305570271,12.78119538,117.69,117.58,12.7502]
[1644305570471,0.02939538,117.69,117.58,12.7502]
[1644305570671,6.02939538,117.69,117.58,20.66779013]
[1644305570971,6.0,117.69,117.58,20.66779013]
[1644305571171,0.02939538,117.68,117.58,20.66779013]
[1644305571373,0.02939538,117.7,117.59,24.5386]
[1644305571575,0.02939538,117.68,117.59,30.5386]
[1644305571775,0.02939538,117.7,117.59,30.7886]
[1644305571973,0.02939538,117.7,117.59,55.2595]
[1644305572774,0.02939538,117.7,117.59,49.2595]
[1644305572980,0.02939538,117.7,117.59,55.2595]
[1644305573775,12.77979538,117.7,117.59,55.2595]
[1644305573973,19.02979538,117.7,117.59,55.2595]
[1644305575779,18.77979538,117.7,117.59,55.2595]
[1644305576281,6.02939538,117.7,117.59,69.67579013]
[1644305576682,0.02939538,117.7,117.59,69.67579013]
[1644305576883,6.02939538,117.7,117.59,69.67579013]
[1644305577283,6.27939538,117.7,117.59,68.0082]
[1644305577484,13.02979538,117.7,117.59,68.0082]
[1644305577682,19.02979538,117.7,117.59,68.0082]
[1644305577882,18.77979538,117.7,117.59,68.0082]
[1644305579184,19.02979538,117.7,117.59,68.0082]
[1644305579685,19.02979538,117.7,117.59,67.7582]
[1644305579886,19.02979538,117.7,117.59,55.0095]
[1644305580088,20.22068613,117.7,117.59,49.0095]
[1644305581289,20.22068613,117.7,117.59,49.2595]
[1644305581487,1.19089075,117.69,117.59,49.2595]
[1644305581687,7.22028613,117.69,117.59,49.2595]
[1644305581889,7.47028613,117.69,117.59,47.58563572]
[1644305582489,20.22128613,117.69,117.59,47.58563572]
[1644305583492,20.22128613,117.69,117.59,53.58563572]
[1644305583791,1.19089075,117.68,117.59,53.58563572]
[1644305584191,7.44089075,117.68,117.59,53.58563572]
[1644305584791,7.44089075,117.68,117.59,47.58563572]
[1644305585593,1.19089075,117.67,117.59,53.58563572]
[1644305585892,1.19089075,117.67,117.59,47.58563572]
[1644305586193,1.44089075,117.67,117.59,53.58563572]
[1644305586392,1.44089075,117.67,117.59,47.58563572]
[1644305587193,1.44089075,117.67,117.59,53.58563572]
[1644305587393,1.44089075,117.67,117.59,47.58563572]
[1644305587596,1.44089075,117.67,117.59,53.58563572]
[1644305587796,1.44089075,117.67,117.59,47.58563572]
[1644305588097,1.19089075,117.66,117.59,47.58563572]
[1644305588297,1.44089075,117.66,117.59,47.58563572]
[1644305588696,0.25,117.66,117.59,47.58563572]
[1644305588896,1.44089075,117.66,117.59,47.58563572]
[1644305589397,1.19089075,117.66,117.59,47.58563572]
[1644305589599,1.19089075,117.67,117.59,47.58563572]
[1644305589797,1.19089075,117.66,117.59,47.58563572]
[1644305590198,1.44089075,117.66,117.59,47.58563572]
[1644305590397,1.44089075,117.66,117.59,53.58563572]
[1644305590598,11.29389075,117.66,117.59,47.58563572]
[1644305591598,1.19089075,117.65,117.59,47.58563572]
[1644305591798,11.29389075,117.66,117.59,47.58563572]
[1644305592202,11.29389075,117.66,117.59,43.58563572]
[1644305592724,11.29389075,117.66,117.59,37.58563572]
[1644305592924,11.29389075,117.66,117.59,37.33563572]
[1644305593123,11.29389075,117.66,117.59,43.33563572]
[1644305593322,11.29389075,117.66,117.59,37.33563572]
[1644305594223,11.29389075,117.66,117.59,37.58563572]
[1644305594525,1.19089075,117.65,117.59,37.58563572]
[1644305595024,1.19089075,117.65,117.59,43.58563572]
[1644305595224,0.69089075,117.65,117.59,43.58563572]
[1644305595524,0.25,117.66,117.59,43.33563572]
[1644305595728,39.17432837,117.68,117.59,43.33563572]
[1644305595729,45.45372375,117.68,117.59,43.33563572]
[1644305595926,45.45372375,117.68,117.57,1.66759013]
[1644305596126,47.56147924,117.68,117.55,35.4317]
[1644305596326,4.76939916,117.67,117.55,23.1717]
[1644305596526,12.7554,117.64,117.55,29.1717]
[1644305596726,25.2514,117.64,117.55,29.4217]
[1644305597529,25.2514,117.64,117.55,23.4217]
[1644305597931,31.2514,117.64,117.55,23.4217]
[1644305599229,25.2514,117.64,117.55,23.4217]
[1644305599630,31.2514,117.64,117.55,23.4217]
[1644305599833,25.2514,117.64,117.55,23.4217]
[1644305600229,24.7514,117.64,117.55,23.4217]
[1644305600831,24.7514,117.64,117.55,0.25]
[1644305601031,24.7514,117.64,117.54,6.25]
[1644305601231,24.78079538,117.64,117.54,0.25]
[1644305601431,30.78079538,117.64,117.54,0.25]
[1644305601629,30.78079538,117.64,117.53,64.8552]
[1644305601630,12.7584,117.61,117.53,64.8552]
[1644305601829,20.6674,117.61,117.53,64.8552]
[1644305602632,20.6674,117.61,117.53,6.25]
[1644305603133,20.6674,117.61,117.53,0.25]
[1644305603343,12.7584,117.61,117.51,42.3652]
[1644305603537,0.02939538,117.61,117.54,1.66339628]
[1644305603732,0.02939538,117.61,117.56,12.7537]
[1644305603933,0.02939538,117.64,117.56,25.0137]
[1644305604132,0.02939538,117.63,117.57,25.19069628]
[1644305604332,0.02939538,117.63,117.58,12.26]
[1644305604532,0.02939538,117.68,117.59,23.5273]
[1644305604732,0.02939538,117.7,117.59,36.0373]
[1644305604931,0.02939538,117.7,117.59,43.70069628]
[1644305605134,0.02939538,117.7,117.6,14.41019628]
[1644305605332,18.77729538,117.71,117.61,12.26]
[1644305605535,18.77729538,117.71,117.61,13.92339628]
[1644305605735,18.77729538,117.71,117.61,62.66029628]
[1644305605934,12.77729538,117.71,117.61,62.66029628]
[1644305606334,12.27729538,117.71,117.64,12.7461]
[1644305606535,12.2479,117.71,117.64,12.7461]
[1644305606735,18.2479,117.71,117.64,18.9961]
[1644305609841,18.4979,117.71,117.64,18.9961]
[1644305610042,18.4979,117.71,117.64,12.9961]
[1644305610641,18.4979,117.71,117.64,12.7461]
[1644305612347,18.4979,117.71,117.64,12.9961]
[1644305612645,18.4979,117.71,117.64,18.9961]
[1644305613047,18.2479,117.71,117.64,12.9961]
[1644305613248,18.2479,117.71,117.64,18.9961]
[1644305613649,12.77489538,117.73,117.64,18.9961]
[1644305613858,12.9955,117.73,117.64,20.65949628]
[1644305616553,23.79319538,117.74,117.64,32.91949628]
[1644305616754,0.27939538,117.74,117.64,32.91949628]
[1644305617957,0.02939538,117.74,117.64,32.91949628]
[1644305619953,12.77059538,117.76,117.68,12.7407]
[1644305620153,0.02939538,117.74,117.68,18.7407]
[1644305620354,0.02939538,117.74,117.68,18.9907]
[1644305620561,18.9912,117.76,117.68,18.9907]
[1644305620955,6.25,117.76,117.69,1.66339628]
[1644305621157,66.6067,117.77,117.7,12.7396]
[1644305621355,6.0,117.76,117.7,12.9896]
[1644305621562,18.22339974,117.79,117.7,20.65299628]
[1644305621755,0.02939538,117.78,117.7,20.65299628]
[1644305621956,0.44214564,117.79,117.7,51.98332011]
[1644305622156,0.44214564,117.79,117.73,12.7327]
[1644305622356,0.44214564,117.79,117.73,25.2427]
[1644305622556,0.44214564,117.79,117.73,31.2427]
[1644305623161,0.44214564,117.79,117.73,32.90609628]
[1644305623361,0.44214564,117.79,117.73,48.30671111]
[1644305623560,0.44214564,117.79,117.73,64.23642011]
[1644305623764,0.44214564,117.79,117.73,88.33162011]
[1644305625062,12.7309,117.88,117.74,107.0]
[1644305625261,0.50457372,117.89,117.78,12.7284]
[1644305625262,0.03022066,117.87,117.78,12.7284]
[1644305625461,0.50457372,117.89,117.79,12.26]
[1644305625462,0.53479438,117.89,117.79,12.26]
[1644305625666,0.03022066,117.88,117.8,153.29]
[1644305625862,0.50457372,117.89,117.81,36.0101]
[1644305625863,0.53479438,117.89,117.81,36.0101]
[1644305626061,0.50457372,117.89,117.81,195.3001]
[1644305626262,0.50457372,117.89,117.81,229.46379734]
[1644305626480,0.50457372,117.89,117.82,17.98398834]
[1644305626681,0.50457372,117.89,117.83,12.26]
[1644305626881,0.50457372,117.89,117.83,13.92037351]
[1644305627081,0.50457372,117.89,117.84,12.721]
[1644305627283,0.50457372,117.89,117.85,12.26]
[1644305627684,0.50457372,117.89,117.85,18.51]
[1644305627882,0.50457372,117.89,117.85,18.26]
[1644305628285,0.50457372,117.89,117.85,30.981]
[1644305629283,0.50457372,117.89,117.85,18.51]
[1644305630288,0.50457372,117.89,117.85,18.26]
[1644305630486,0.50457372,117.89,117.85,18.51]
[1644305638193,0.50457372,117.89,117.85,12.26]
[1644305638394,0.50457372,117.89,117.82,12.26]
[1644305638594,0.50457372,117.89,117.8,12.26]
[1644305638798,2.61232921,117.89,117.75,12.26]
[1644305638996,0.03022066,117.88,117.73,59.5679]
[1644305639196,54.7136,117.87,117.73,72.3024]
[1644305639396,0.03022066,117.86,117.73,72.3024]
[1644305639597,12.7361,117.84,117.73,12.26]
[1644305639798,13.01632066,117.84,117.73,12.26]
[1644305640000,19.01632066,117.84,117.73,12.26]
[1644305640199,2.10775549,117.83,117.73,18.26]
[1644305640398,13.33097615,117.83,117.73,18.26]
[1644305640601,19.58097615,117.83,117.73,18.26]
[1644305640799,17.47322066,117.83,117.73,18.51]
[1644305641599,0.28022066,117.83,117.73,18.51]
[1644305641801,10.91522066,117.83,117.73,12.26]
[1644305642001,13.02297615,117.83,117.7,12.26]
[1644305642204,12.26,117.82,117.67,12.26]
[1644305642401,12.7431,117.78,117.65,12.26]
[1644305642601,12.7431,117.78,117.63,45.2702]
[1644305642602,0.03022066,117.77,117.63,70.2758]
[1644305642802,2.13797615,117.77,117.63,12.26]
[1644305643002,14.39797615,117.77,117.6,12.26]
[1644305643201,2.10775549,117.76,117.59,25.41511906]
[1644305643405,12.7473,117.73,117.59,31.41511906]
[1644305643600,42.22352066,117.73,117.59,7.66131906]
[1644305643802,44.58127615,117.73,117.59,7.66131906]
[1644305644201,53.07038995,117.73,117.59,6.0]
[1644305644603,53.07038995,117.73,117.56,8.0254281]
[1644305644805,53.07038995,117.73,117.56,2.0254281]
[1644305645004,53.07038995,117.73,117.56,8.0254281]
[1644305645205,53.07038995,117.73,117.62,0.36410904]
[1644305645406,44.58127615,117.73,117.62,0.36410904]
[1644305646607,44.55105549,117.73,117.62,0.36410904]
[1644305647214,31.2573,117.73,117.62,0.36410904]
[1644305647606,31.2573,117.73,117.62,2.01713344]
[1644305647816,31.2573,117.73,117.62,2.26713344]
[1644305650713,31.2573,117.73,117.62,15.01363344]
[1644305650913,31.0073,117.73,117.62,21.01363344]
[1644305651111,18.7473,117.73,117.62,21.01363344]
[1644305651313,6.0,117.73,117.62,21.01363344]
[1644305651514,0.03022066,117.74,117.63,12.26]
[1644305651717,0.03022066,117.75,117.63,18.51]
[1644305651914,0.03022066,117.76,117.64,1.6530244]
[1644305652213,0.03022066,117.74,117.64,20.1630244]
[1644305652413,0.03022066,117.75,117.64,20.1630244]
[1644305652614,0.03022066,117.76,117.66,12.7417]
[1644305652840,0.03022066,117.75,117.66,25.2517]
[1644305653042,0.03022066,117.76,117.66,32.9047244]
[1644305653240,0.03022066,117.78,117.66,32.9047244]
[1644305654741,12.76892066,117.81,117.66,32.9047244]
[1644305654940,0.03022066,117.77,117.66,47.96004478]
[1644305655142,0.03022066,117.8,117.66,47.96004478]
[1644305655340,0.03022066,117.77,117.66,47.96004478]
[1644305655540,0.03022066,117.8,117.66,47.96004478]
[1644305655740,18.7387,117.81,117.66,47.96004478]
[1644305655741,0.03022066,117.77,117.66,47.96004478]
[1644305655940,0.03022066,117.8,117.66,47.96004478]
[1644305656143,0.03022066,117.77,117.66,47.96004478]
[1644305656341,0.03022066,117.79,117.66,47.96004478]
[1644305656742,100.7043,117.86,117.71,12.7344]
[1644305656743,0.03022066,117.82,117.71,12.7344]
[1644305656944,0.03022066,117.78,117.71,12.7344]
[1644305657142,0.03022066,117.81,117.72,1.6530244]
[1644305657342,0.03022066,117.84,117.72,14.1630244]
[1644305657842,0.03022066,117.84,117.74,12.7334]
[1644305658343,0.03022066,117.84,117.74,18.9834]
[1644305658745,0.03022066,117.84,117.74,20.6364244]
[1644305659141,0.03022066,117.85,117.74,32.8964244]
[1644305660743,0.03022066,117.85,117.74,32.6464244]
[1644305662745,0.03022066,117.85,117.74,30.9934]
[1644305663747,0.03022066,117.85,117.74,31.2434]
[1644305667752,64.9716,117.86,117.74,31.2434]
[1644305668052,0.03030563,117.84,117.74,31.2434]
[1644305668253,0.03030563,117.85,117.74,31.2434]
[1644305669653,12.76400563,117.85,117.74,31.2434]
[1644305669853,13.01400563,117.85,117.74,31.2434]
[1644305671557,21.12176112,117.85,117.74,0.25]
[1644305671756,33.38176112,117.85,117.73,48.2975]
[1644305671956,33.38176112,117.85,117.73,48.0475]
[1644305673259,33.38176112,117.85,117.73,48.2975]
[1644305676361,35.69938949,117.85,117.73,48.2975]
[1644305676561,35.69938949,117.85,117.73,6.0]
[1644305676763,35.69938949,117.85,117.72,18.736]
[1644305676962,35.69938949,117.85,117.72,12.736]
[1644305677761,35.69938949,117.85,117.72,12.986]
[1644305678162,4.72556308,117.84,117.72,12.986]
[1644305678366,0.03030563,117.83,117.72,12.986]
[1644305678563,12.7378,117.81,117.72,12.986]
[1644305678762,12.9878,117.81,117.72,12.986]
[1644305682167,12.9878,117.81,117.72,18.986]
[1644305682368,12.9878,117.81,117.72,12.986]
[1644305684069,18.9878,117.81,117.72,12.986]
[1644305684269,12.9878,117.81,117.72,12.986]
[1644305686787,12.9878,117.81,117.72,12.736]
[1644305686988,18.9878,117.81,117.7,36.4919]
[1644305687490,21.09555549,117.81,117.68,36.7399]
[1644305687690,21.09555549,117.81,117.68,42.7399]
[1644305687891,21.09555549,117.81,117.68,24.4799]
[1644305687892,35.67318386,117.81,117.68,24.4799]
[1644305688089,44.16229766,117.81,117.68,24.4799]
[1644305688889,33.56542837,117.81,117.68,24.7299]
[1644305689491,33.56542837,117.81,117.68,30.7299]
[1644305689692,33.56542837,117.81,117.68,43.4719]
[1644305690392,2.6503919,117.69,117.68,45.12070071]
[1644305690593,12.739,117.79,117.69,90.0]
[1644305690794,12.739,117.79,117.69,108.51]
[1644305690795,12.989,117.79,117.69,108.51]
[1644305690992,12.989,117.79,117.69,110.15880071]
[1644305691492,12.989,117.79,117.69,20.15880071]
[1644305691894,12.989,117.79,117.71,12.7385]
[1644305692293,12.989,117.79,117.71,12.9885]
[1644305692593,12.989,117.79,117.71,18.9885]
[1644305692993,12.989,117.79,117.71,12.9885]
[1644305694095,12.989,117.79,117.71,18.9885]
[1644305694795,12.989,117.79,117.71,18.7385]
[1644305697297,12.989,117.79,117.71,12.7385]
[1644305700097,12.989,117.79,117.71,18.7385]
[1644305700498,12.989,117.79,117.71,12.7385]
[1644305701302,12.739,117.79,117.71,12.9885]
[1644305701501,12.737,117.8,117.71,18.9885]
[1644305701702,12.737,117.8,117.71,43.9545]
[1644305702098,12.737,117.8,117.71,56.2145]
[1644305702702,12.987,117.8,117.71,56.2145]
[1644305703401,12.737,117.8,117.71,56.2145]
[1644305704704,12.987,117.8,117.71,56.2145]
[1644305707308,12.987,117.8,117.71,55.9645]
[1644305708809,12.987,117.8,117.71,56.2145]
[1644305711011,12.987,117.8,117.71,43.9545]
[1644305712713,12.987,117.8,117.71,43.7045]
[1644305712913,12.987,117.8,117.69,12.26]
[1644305713214,19.10247978,117.79,117.63,12.26]
[1644305713415,12.7469,117.74,117.62,49.487]
[1644305713612,36.4869,117.74,117.62,49.487]
[1644305713813,36.7369,117.74,117.62,49.487]
[1644305714213,36.7369,117.74,117.63,12.26]
[1644305714616,36.7369,117.74,117.63,18.51]
[1644305714813,36.7369,117.74,117.64,12.7457]
[1644305715217,36.7369,117.74,117.64,18.9957]
[1644305717817,42.7369,117.74,117.64,18.9957]
[1644305718018,36.7369,117.74,117.64,18.9957]
[1644305719317,42.7369,117.74,117.64,42.484]
[1644305719725,36.7369,117.74,117.64,42.484]
[1644305722117,42.7369,117.74,117.64,42.484]
[1644305722619,36.7369,117.74,117.64,42.484]
[1644305723220,42.7369,117.74,117.64,42.484]
[1644305723420,36.7369,117.74,117.64,42.484]
[1644305724121,12.9969,117.74,117.64,44.12691804]
[1644305725221,12.9969,117.74,117.64,54.744]
[1644305725625,18.9969,117.74,117.64,54.744]
[1644305726222,12.9969,117.74,117.64,54.744]
[1644305729124,18.9969,117.74,117.64,54.744]
[1644305738355,18.7469,117.74,117.64,57.59078145]
[1644305738755,12.7417,117.75,117.64,57.59078145]
[1644305738954,1.20762172,117.77,117.65,1.20386341]
[1644305739256,1.20762172,117.77,117.68,12.7401]
[1644305739655,25.09272172,117.78,117.68,18.9901]
[1644305740455,23.8851,117.78,117.68,18.9901]
[1644305740755,12.7397,117.77,117.68,18.9901]
[1644305742660,12.9897,117.77,117.68,18.9901]
[1644305742858,12.7397,117.77,117.68,18.9901]
[1644305743961,12.7397,117.77,117.68,31.2501]
[1644305744762,12.7397,117.77,117.68,25.2501]
[1644305746166,12.7386,117.78,117.68,31.2501]
[1644305746367,1.20762172,117.79,117.68,32.89301804]
[1644305746566,1.20762172,117.8,117.72,12.7355]
[1644305746767,1.20762172,117.81,117.73,22.8706]
[1644305747166,1.20762172,117.82,117.73,29.1206]
[1644305747366,1.23792735,117.82,117.73,29.1206]
[1644305747567,1.20762172,117.82,117.73,29.1206]
[1644305747766,12.7352,117.81,117.74,12.7352]
[1644305748168,12.7352,117.81,117.74,12.9852]
[1644305748367,18.7352,117.81,117.74,18.9852]
[1644305748569,18.7352,117.81,117.74,12.9852]
[1644305749371,18.9852,117.81,117.74,12.9852]
[1644305750172,18.7352,117.81,117.74,12.9852]
[1644305753172,18.9852,117.81,117.74,12.9852]
[1644305753374,18.9852,117.81,117.74,0.25]
[1644305753771,18.9852,117.81,117.73,35.607]
[1644305755171,18.9852,117.81,117.73,35.857]
[1644305760175,18.9852,117.81,117.73,35.607]
[1644305760374,18.9852,117.81,117.73,22.8706]
[1644305762580,18.7352,117.81,117.73,22.8706]
[1644305762781,18.7352,117.81,117.73,23.1206]
[1644305763881,29.3112,117.81,117.71,12.26]
[1644305764084,31.44926112,117.81,117.71,12.26]
[1644305764284,32.40688284,117.81,117.71,12.26]
[1644305764486,30.29912735,117.81,117.72,1.64291804]
[1644305764686,18.7352,117.81,117.72,1.64291804]
[1644305764883,18.7352,117.81,117.7,1.64291804]
[1644305765085,18.7352,117.81,117.7,19.90291804]
[1644305765285,18.7352,117.81,117.71,24.8289]
[1644305765486,18.7352,117.81,117.71,38.73181804]
[1644305765684,18.7352,117.81,117.71,44.98181804]
[1644305765984,0.03030563,117.82,117.74,12.7353]
[1644305766184,1.20762172,117.83,117.74,18.7353]
[1644305766385,0.03030563,117.83,117.75,1.64291804]
[1644305766583,0.03030563,117.84,117.75,1.64291804]
[1644305766786,30.82550563,117.85,117.77,12.7317]
[1644305766985,44.73482172,117.85,117.75,26.48831804]
[1644305767287,44.76512735,117.85,117.75,24.8454]
[1644305767789,1.20762172,117.84,117.75,37.5797]
[1644305768185,1.45762172,117.84,117.75,37.5797]
[1644305768786,12.7348,117.82,117.75,37.5797]
[1644305769211,18.7348,117.82,117.75,37.5797]
[1644305770613,30.0508,117.82,117.73,12.26]
[1644305770811,30.0508,117.82,117.7,1.20386341]
[1644305771010,30.0508,117.82,117.68,1.20386341]
[1644305771011,12.7411,117.78,117.68,1.20386341]
[1644305771210,12.7411,117.78,117.66,23.751]
[1644305771211,28.7731,117.78,117.67,1.20386341]
[1644305771411,28.7731,117.78,117.66,24.95486341]
[1644305771811,28.7731,117.78,117.66,23.751]
[1644305771812,42.4847,117.75,117.66,23.751]
[1644305772012,53.6227,117.75,117.66,23.751]
[1644305772211,59.8727,117.75,117.66,23.751]
[1644305772811,12.7454,117.74,117.66,23.751]
[1644305773213,12.9954,117.74,117.66,23.751]
[1644305773413,12.9954,117.74,117.65,0.024]
[1644305773614,18.9954,117.74,117.64,0.024]
[1644305773819,12.7503,117.71,117.64,0.024]
[1644305774015,20.5023,117.71,117.61,1.20386341]
[1644305774217,26.7523,117.71,117.61,1.22786341]
[1644305774819,26.7523,117.71,117.61,0.024]
[1644305775118,26.7523,117.71,117.61,0.274]
[1644305775316,26.7523,117.71,117.61,0.024]
[1644305775519,26.7523,117.71,117.61,1.66691804]
[1644305775716,26.7523,117.71,117.61,1.91691804]
[1644305775916,26.7523,117.71,117.61,1.66691804]
[1644305778418,26.7523,117.71,117.61,0.024]
[1644305778618,28.86005549,117.71,117.59,0.024]
[1644305778820,12.26,117.7,117.59,0.024]
[1644305779019,12.7532,117.67,117.59,0.024]
[1644305779320,12.7532,117.67,117.57,0.024]
[1644305779321,31.3512,117.67,117.57,0.024]
[1644305780119,31.3512,117.67,117.55,0.024]
[1644305780720,31.3512,117.67,117.55,14.42051804]
[1644305780920,31.3512,117.67,117.56,0.024]
[1644305781319,31.3512,117.67,117.56,1.66691804]
[1644305781519,31.3512,117.67,117.57,0.024]